Cogmind - Beta 10.1 @@@ ROGUE MODE // 2020.09.28 @ 17:36:04 Player: Enzo Result: Destroyed by S-10 Pest with Light Assault Rifle Performance ------------- Evolutions (0) 0 Regions Visited (4) 800 Robots Destroyed (35) 175 Value Destroyed (512) 512 Prototype IDs (25) 500 Alien Tech Used (0) 0 Bonus (300) 300 TOTAL SCORE: 2287 Bonus ------- Aligned with FarCom 300 Cogmind --------- Core Integrity 0/250 Matter 259/300 Energy 99/100 System Corruption 11% Temperature Cool (0) Movement Core (50) Location -9/Mines Parts ------- > --- POWER (1) -------- (None) > --- PROPULSION (2) --- (None) > --- UTILITY (2) ------ (None) > --- WEAPON (2) ------- (None) > --- INVENTORY (4) ---- Disposable Heat Sink Superbattery (2000) Hacking Suite Datajack Peak State ------------ > --- POWER ------------ (None) > --- PROPULSION ------- (None) > --- UTILITY ---------- Large Storage Unit Superbattery > --- WEAPON ----------- (None) > --- INVENTORY -------- Disposable Heat Sink ECM Suite Hacking Suite Datajack [Rating: 11] Favorites ----------- Power Ion Engine Engine Ion Engine Propulsion Light Treads Treads Light Treads Utility Small Storage Unit Device Structural Scanner Storage Small Storage Unit Processor Signal Interpreter Weapon Light Cannon Energy Gun Heavy EM Pulse Gun Energy Cannon Beam Cannon Ballistic Cannon Light Cannon Build | -11 -10 -10 -10 -9 ------- Run | Scr Mat Min Exi Min Slots Evolved . | . . . . . Power . | . . . . . Propulsion . | . . . . . Utility . | . . . . . Weapon . | . . . . . Parts Attached 27 | 7 16 2 2 . Power 2 | 1 1 . . . Engine 2 | 1 1 . . . Core . | . . . . . Reactor . | . . . . . Propulsion 5 | 2 3 . . . Treads 5 | 2 3 . . . Leg . | . . . . . Wheel . | . . . . . Hover . | . . . . . Flight . | . . . . . Utility 11 | 2 7 . 2 . Device 4 | . 4 . . . Storage 6 | 2 2 . 2 . Processor 1 | . 1 . . . Hackware . | . . . . . Protection . | . . . . . Artifact . | . . . . . Weapon 9 | 2 5 2 . . Energy Gun 7 | 2 3 2 . . Energy Cannon 1 | . 1 . . . Ballistic Gun . | . . . . . Ballistic Cannon 1 | . 1 . . . Launcher . | . . . . . Special Weapon . | . . . . . Impact Weapon . | . . . . . Slashing Weapon . | . . . . . Piercing Weapon . | . . . . . Special Melee Weapon . | . . . . . Unidentified Prototypes . | . . . . . Parts Lost 8 | . 1 7 . . Power 1 | . . 1 . . Propulsion 2 | . . 2 . . Utility 1 | . . 1 . . Weapon 4 | . 1 3 . . Highest Loss Streak 7 | . 1 7 . . Average Slot Usage (%) 80 | . 99 61 16 . Engine 10 | . 14 3 . . Treads 21 | . 28 18 . . Device 3 | . 3 12 . . Storage 21 | . 23 12 16 . Energy Gun 8 | . 11 3 . . Energy Cannon 4 | . 5 7 . . Ballistic Cannon 8 | . 11 3 . . Naked Turns 86 | . . 5 63 18 Heaviest Build 26 | 17 26 26 20 . Greatest Support 40 | 40 40 40 3 3 Greatest Overweight (x) 6 | . . . 6 . Average Overweight (x) . | . . . 1 . Largest Inventory Capacity 14 | 8 14 10 10 4 Average Capacity 8 | 6 9 9 6 4 Most Carried 10 | 4 10 10 4 4 Average Carried 7 | 1 8 8 4 4 Final Capacity 10 | 8 10 4 10 4 Final Carried 10 | 4 10 4 4 4 Class Distribution -------------------- 100% | Mutant Dominant Class ---------------- Mutant | -10/Materials Mutant | -10/Mines Mutant | -10/Exiles Mutant | -9/Mines Resources | -11 -10 -10 -10 -9 ----------- Run | Scr Mat Min Exi Min Matter Collected 532 | 270 262 . . . Remotely . | . . . . . Salvage Created 950 | 151 773 26 . . Parts 65 | 8 57 . . . Haulers Intercepted 2 | . 2 . . . Recyclers Shooed . | . . . . . Parts Field Recycled . | . . . . . Retrieved Matter . | . . . . . Parts Self-Destructed . | . . . . . Prevented . | . . . . . Kills | -11 -10 -10 -10 -9 ------- Run | Scr Mat Min Exi Min Combat Hostiles Destroyed 19 | . 17 2 . . Guns 11 | . 10 1 . . Cannons 7 | . 6 1 . . AOE 1 | . 1 . . . Classes Destroyed 10 | 2 7 1 . . Worker 4 | . 4 . . . Builder 3 | . 3 . . . Tunneler 2 | 2 . . . . Hauler 2 | . 2 . . . Recycler 1 | 1 . . . . Operator 1 | . 1 . . . Watcher 3 | . 3 . . . Swarmer 9 | . 9 . . . Grunt 8 | . 8 . . . Assembled 2 | . . 2 . . Best Kill Streak 6 | 1 6 2 . . Combat Bots Only 4 | . 4 2 . . Max Kills in Single Turn 2 | 1 2 1 . . Gunslinging 1 | . 1 . . . Exploded 1 | . 1 . . . Melee . | . . . . . Uniques/NPCs Destroyed . | . . . . . Combat | -11 -10 -10 -10 -9 -------- Run | Scr Mat Min Exi Min Damage Taken 1311 | . 650 595 . 66 Core 255 | . 66 123 . 66 Absorbed by Shields . | . . . . . Core Remaining (%) 100 | 100 . . . . Volleys Fired 64 | 7 49 8 . . Largest 2 | 2 2 2 . . Hottest 105 | 100 95 105 . . Shots Fired 124 | 14 98 12 . . Gun 79 | 14 60 5 . . Cannon 45 | . 38 7 . . Launcher . | . . . . . Special . | . . . . . Kinetic 27 | . 26 1 . . Thermal 32 | 14 12 6 . . Explosive . | . . . . . Electromagnetic 65 | . 60 5 . . Robot Hit Streak 5 | 3 5 4 . . Robot Miss Streak 3 | 1 3 1 . . Penetration Max . | . . . . . Secondary Targets 2 | . 2 . . . Max Gunslinging Chain 1 | . 1 . . . Shots Hit Robots 69 | 9 51 9 . . Core Hits 46 | 4 36 6 . . Critical Hits 1 | . 1 . . . Critical Kills . | . . . . . Critical Parts Destroyed 1 | . 1 . . . Melee Attacks . | . . . . . Impact . | . . . . . Slashing . | . . . . . Piercing . | . . . . . Sneak Attacks . | . . . . . Combat Hostiles . | . . . . . Follow-up Attacks . | . . . . . Damage Inflicted 1680 | 140 1394 146 . . Guns 809 | 140 604 65 . . Cannons 425 | . 355 70 . . Explosions 435 | . 435 . . . Melee . | . . . . . Ramming 11 | . . 11 . . Kinetic 159 | . 159 . . . Thermal 606 | 140 396 70 . . Explosive 235 | . 235 . . . Electromagnetic 669 | . 604 65 . . Impact . | . . . . . Slashing . | . . . . . Piercing . | . . . . . Highest Corruption 11 | . 6 11 11 11 Average Corruption 7 | . 5 8 11 11 Corruption Purged . | . . . . . Effects 35 | . 12 7 16 . Message Errors 5 | . 1 1 3 . Matter Fused 5 | . 2 1 2 . Heat Flow Errors 6 | . 3 . 3 . Energy Discharges 7 | . 3 . 4 . Data Loss (minor) 1 | . . . 1 . Data Loss (major) 1 | . 1 . . . Alerts 2 | . . 2 . . Misdirections 3 | . . . 3 . Targeting Errors 5 | . 2 3 . . Overload Shots . | . . . . . Overflow Damage 12 | . 12 . . . Projectiles . | . . . . . Explosions 12 | . 12 . . . Melee . | . . . . . Knockbacks 4 | . 4 . . . Impact . | . . . . . Kinetic 3 | . 3 . . . Secondary 1 | . 1 . . . Self-Inflicted Damage 106 | . 106 . . . Shots 2 | . 2 . . . Rammed 4 | . . 4 . . Targets Rammed 4 | . . 4 . . Kicked . | . . . . . Crushed . | . . . . . Highest Temperature 254 | 156 249 90 254 . Average Temperature 81 | 59 84 35 117 . Received Heat Transfer 237 | . 144 93 . . Siege Activations . | . . . . . Robots Corrupted . | . . . . . Combat Hostiles . | . . . . . Parts Fried 2 | . 2 . . . Impact Corruptions . | . . . . . Robots Melted . | . . . . . Combat Hostiles . | . . . . . Parts Melted 2 | 2 . . . . Heat Transferred 1212 | 407 657 148 . . Parts Sabotaged . | . . . . . Parts Stolen . | . . . . . Parts Stripped . | . . . . . Power Chain Reactions 3 | . 3 . . . Missiles Intercepted . | . . . . . Alert | -11 -10 -10 -10 -9 ------- Run | Scr Mat Min Exi Min Peak Influence 365 | 15 365 91 . . Initial 76 | . 9 76 . . Average 156 | 5 185 62 . . Maximum Alert Level 1 | . 1 . . . Low Security (%) 68 | 100 61 100 . 100 Level 1 31 | . 38 . . . Level 2 . | . . . . . Level 3 . | . . . . . Level 4 . | . . . . . Level 5 . | . . . . . High Security . | . . . . . Max Security . | . . . . . Squads Dispatched 2 | . 2 . . . Investigation 1 | . 1 . . . Extermination . | . . . . . Reinforcement 1 | . 1 . . . Assault . | . . . . . Garrison . | . . . . . Intercept . | . . . . . Construction Impeded . | . . . . . Haulers Reinforced . | . . . . . Stealth | -11 -10 -10 -10 -9 --------- Run | Scr Mat Min Exi Min Distress Signals 3 | . 3 . . . Communications Jammed . | . . . . . Distress Signals . | . . . . . Times Spotted 58 | . 23 32 . 3 Peak Tracking Total 24 | . 5 24 . 3 Tactical Retreats 3 | . . 3 . . Traps | -11 -10 -10 -10 -9 ------- Run | Scr Mat Min Exi Min Traps Triggered 4 | . 4 . . . Indirectly . | . . . . . Trap Hack Attempts . | . . . . . Triggered . | . . . . . Disarmed . | . . . . . Reprogrammed . | . . . . . Reused . | . . . . . Traps Extracted . | . . . . . Installed 1 | . . 1 . . Triggered . | . . . . . Machines | -11 -10 -10 -10 -9 ---------- Run | Scr Mat Min Exi Min Machines Disabled 3 | . 3 . . . Max in Single Turn 2 | . 2 . . . Machines Sabotaged . | . . . . . Garrisons Compromised . | . . . . . Overloaded Fab Kills . | . . . . . Fab Network Shutdowns . | . . . . . Hacking | -11 -10 -10 -10 -9 --------- Run | Scr Mat Min Exi Min Machines Accessed 9 | . 7 . 2 . Terminals 6 | . 6 . . . Fabricators . | . . . . . Repair Stations . | . . . . . Recycling Units 1 | . 1 . . . Scanalyzers . | . . . . . Garrison Access . | . . . . . Total Hacks 28 | . 26 . 2 . Successful 13 | . 11 . 2 . Failed 15 | . 15 . . . Catastrophic 1 | . 1 . . . Database Lockouts . | . . . . . Manual 22 | . 21 . 1 . Terminals 25 | . 25 . . . Fabricators . | . . . . . Repair Stations . | . . . . . Recycling Units 1 | . 1 . . . Scanalyzers . | . . . . . Garrison Access . | . . . . . Terminal Hacks 7 | . 5 . 2 . Record 1 | . . . 1 . Part Schematic 1 | . 1 . . . Robot Analysis 1 | . 1 . . . Prototype ID Bank 1 | . 1 . . . Terminal Index 1 | . 1 . . . Alert Level 1 | . 1 . . . EX-Prototype ID Bank 1 | . . . 1 . Fabricator Hacks . | . . . . . Repair Station Hacks . | . . . . . Recycling Unit Hacks 1 | . 1 . . . Retrieve Components 1 | . 1 . . . Scanalyzer . | . . . . . Garrison Access Hacks . | . . . . . Unauthorized Hacks 5 | . 5 . . . Terminals 5 | . 5 . . . Botnet 4 | . 4 . . . Operators 1 | . 1 . . . Fabricators . | . . . . . Repair Stations . | . . . . . Recycling Units . | . . . . . Scanalyzers . | . . . . . Garrison Access . | . . . . . Data Cores Recovered . | . . . . . Used . | . . . . . Hacking Detections 7 | . 7 . . . Full Trace Events 1 | . 1 . . . Feedback Events . | . . . . . Feedback Blocked . | . . . . . Robot Schematics Acquired . | . . . . . Robots Built . | . . . . . Matter . | . . . . . Time . | . . . . . Total Robot Build Rating . | . . . . . Part Schematics Acquired 1 | . 1 . . . Parts Built . | . . . . . Matter . | . . . . . Time . | . . . . . Total Part Build Rating . | . . . . . Parts Repaired . | . . . . . Time . | . . . . . Parts Recycled . | . . . . . Recycled Matter . | . . . . . Retrieved Matter . | . . . . . Retrieved Components 10 | . 10 . . . Parts Scanalyzed . | . . . . . Part Schematics Acquired . | . . . . . Parts Damaged . | . . . . . Bothacking | -11 -10 -10 -10 -9 ------------ Run | Scr Mat Min Exi Min Used RIF Installer . | . . . . . Robots Hacked . | . . . . . Non-combat . | . . . . . Combat . | . . . . . Robot Hacks Applied . | . . . . . Relay Couplers Released . | . . . . . Robots Rewired . | . . . . . Allies Hacked . | . . . . . Hacks Repelled . | . . . . . Allies | -11 -10 -10 -10 -9 -------- Run | Scr Mat Min Exi Min Total Allies . | . . . . . Largest Group . | . . . . . Highest-Rated Group . | . . . . . Highest-Rated Ally . | . . . . . Total Orders . | . . . . . Ally Attacks . | . . . . . Total Damage . | . . . . . Kills . | . . . . . Allies Corrupted . | . . . . . Allies Melted . | . . . . . Intel | -11 -10 -10 -10 -9 ------- Run | Scr Mat Min Exi Min Robot Analysis Total 1 | . 1 . . . Derelict Logs Recovered . | . . . . . Drone Launches . | . . . . . Drone Recoveries . | . . . . . Exploration | -11 -10 -10 -10 -9 ------------- Run | Scr Mat Min Exi Min Turns Passed 1778 | 160 1192 91 316 19 Spaces Moved 1082 | 78 615 56 301 32 Core 362 | 3 . 26 301 32 Treads 720 | 75 615 30 . . Legs . | . . . . . Wheels . | . . . . . Hover . | . . . . . Flight . | . . . . . Fastest Speed 50 | 50 160 50 50 50 Average Speed 138 | 155 160 108 104 50 Slowest Speed 350 | 160 160 160 350 50 Overloaded Moves . | . . . . . Propulsion Burnouts . | . . . . . Robots Hopped . | . . . . . Cave-ins Triggered . | . . . . . Exploration Rate (%) 37 | 4 88 22 62 10 Regions Visited 4 Branch Regions 3 Pre-discovered Areas . | . . . . . Known Exits Taken 1 | . 1 . . . Unknown Exits Taken 3 | 1 . 1 1 . Scrap Searched . | . . . . . Spaces Dug . | . . . . . Terrain Destroyed 42 | . 42 . . . Melee . | . . . . . Projectile . | . . . . . AOE 42 | . 42 . . . Terrain Rammed . | . . . . . Walls Destroyed . | . . . . . Machines Disabled . | . . . . . Actions | -11 -10 -10 -10 -9 --------- Run | Scr Mat Min Exi Min Total 1236 | 99 727 72 302 36 Wait 30 | 4 25 . . 1 Move 1078 | 77 614 55 300 32 Hop . | . . . . . Pick Up 13 | 4 9 . . . Fast Attach 17 | 7 8 . 2 . Attach 6 | . 4 2 . . Detach 3 | . 2 . . 1 Swap 4 | . 4 . . . Drop 16 | . 12 2 . 2 Fire 64 | 7 49 8 . . Melee . | . . . . . Ram . | . . . . . Kick . | . . . . . Crush 4 | . . 4 . . Escape Stasis . | . . . . . Rewire . | . . . . . Trap 1 | . . 1 . . Miscellaneous . | . . . . . Route ------- -11/Scrapyard -10/Materials (discovered 5 exits: *Mat x3 / *Min x2) -10/Mines -10/Exiles -9/Mines History --------- Turn | Location | Event 14 | -11/Scrapyard | Discovered new exit (range 14) 161 | -11/Scrapyard | Entered Materials 306 | -10/Materials | Build established: Mutant 430 | -10/Materials | Discovered new exit (range 11) 586 | -10/Materials | Discovered new exit (range 5) 887 | -10/Materials | Discovered new exit (range 10) 1069 | -10/Materials | Discovered new exit (range 13) 1135 | -10/Materials | Discovered new exit (range 8) 1166 | -10/Materials | Identified exit to Materials 1205 | -10/Materials | Identified exit to Mines 1353 | -10/Materials | Entered Mines 1354 | -10/Mines | Assembled infested the area 1368 | -10/Mines | Met a Derelict bent on vengeance 1403 | -10/Mines | System corruption reached 10% 1414 | -10/Mines | Core integrity fell below 50% 1433 | -10/Mines | Found a hidden stash of uninstalled traps 1442 | -10/Mines | Deemed a non-threat by the Exiles lab entrance 1442 | -10/Mines | Discovered new exit (range 5) 1444 | -10/Mines | Entered Exiles 1457 | -10/Exiles | Met 8R-AWN 1466 | -10/Exiles | Met EX-HEX 1470 | -10/Exiles | Lost 7 parts (1p2n1u3w) 1483 | -10/Exiles | Met EX-BIN 1490 | -10/Exiles | Aligned with FarCom system 1490 | -10/Exiles | Given EX-Vault access code 1504 | -10/Exiles | Opened EX-Vault 1507 | -10/Exiles | Found Superbattery 1568 | -10/Exiles | Warned to stay clear of 0b10 Research branches 1604 | -10/Exiles | Met EX-DEC 1714 | -10/Exiles | Discovered new exit (range 14) 1760 | -10/Exiles | Left Exiles lab with Superbattery 1760 | -10/Exiles | Entered Mines 1762 | -9/Mines | Core integrity fell below 20% 1779 | -9/Mines | Destroyed by S-10 Pest with Light Assault Rifle Last Messages --------------- sneak in here and steal a few of HEX's prototypes. 01590_ System corrupted: Matter fused (-9). EX-DEC: Ah I see we have a visitor. One wrong move in here and I'll invert your atomic chain! 01606_ EX-DEC: "Oops, I hope HEX didn't hear that..." 01623_ UK#ZMCSON7MQ5|W N27OY,MGA>CSJ 01647_ System corrupted: Heat flow error (+239). 01653_ Acquired Lrg. Storage Unit. 01663_ System corrupted: Heat flow error (+218). 01689_ System corrupted: Component data lost. 01705_ :A ZSOPUPFP4,PGUFO8:XO2XQ5 01714_ EXIT=FOUND 01721_ System corrupted: Energy discharge (-193). 01736_ System corrupted: Energy discharge (-277). 01755_ System corrupted: Energy discharge (-189). LOCATION=UNKNOWN GOAL=ESCAPE 01760_ Receiving FarCom transmissions... 01760_ Dropped Lrg. Storage Unit. 01761_ Dropped ECM Suite. Map ----- +----------------------------------------------------+ | ??????????????????????????# """ #???? | | ??????????????????????????# """ #???? | | ??????????????????????????# """ #???? | | ??????????????????????????# ! #???? | | ??????????????????????????# ! #???? | | ??????????????????????????# #???? | | ??????????????????????????# #???? | | ??????????????????????????# #???? | | ??????????????????????????# #???? | | ??????????????????????????###### ##???? | | ????????????????????############ #????? | | ????????????? #????? | | ????????????????????####### ######????? | | ??????????????????????????# #?????????? | | ??????????????????????????# #?????????? | | ??????????????????????????# #?????????? | | ??????????????????????????# #?????????? | | ??????????????????????????# #?????????? | | ??????????????????????????#s#?????????? | | ??????????????????????????# #?????????? | | ?????????????????????????##s###???????? | | ????????????????????????## s ##??????? | | ???????????????????# #### ##?????? | | ???????????????????# ##????? | | ???????????????????# ### ##???? | | ???????????????????????##@ #???? | | ????????????????????????## ### ##???? | | ?????????????????????????#####?###????? | | ??????????????????????????????????????? | | ??????????????????????????????????????? | | ??????????????????????????????????????? | | ??????????????????????????????????????? | | ??????????????????????????????????????? | | ??????????????????????????????????????? | | ??????????????????????????????????????? | | ??????????????????????????????????????? | | ??????????????????????????????????????? | | ??????????????????????????????????????? | | ??????????????????????????????????????? | | ??????????????????????????????????????? | | ??????????????????????????????????????? | | ??????????????????????????????????????? | | ??????????????????????????????????????? | | ??????????????????????????????????????? | | ??????????????????????????????????????? | | ??????????????????????????????????????? | | ??????????????????????????????????????? | | ??????????????????????????????????????? | | ??????????????????????????????????????? | | ??????????????????????????????????????? | +----------------------------------------------------+ Best States ------------- Heat Dissipation 25 Coolant Potential 50 Energy Generation 10 Energy Capacity 2100 Matter Stores 300 Matter Capacity 300 Sight Range 16 Terrain Scan Range 16 Terrain Scan Density 10 Evasion (%) 50 Recoil Reduction 2 Item Schematics ----------------- Datajack | -10/Materials | Hacked Robot Schematics ------------------ None Fabricated ------------ Nothing Alien Tech Used ----------------- None Achievements -------------- None Challenges ------------ None Game ------ Seed GreatBladeRifle Manual? 0 Play Time 00:14:03 Cumulative 40.6 hours Start 2020.09.28 @ 17:22:09 End 2020.09.28 @ 17:36:04 Sessions 1 Manual Loads 0 Difficulty Rogue Special Mode None Game No. 95 Rogue 95 Adventurer 0 Explorer 0 Win Type - Total 0 Types 0/0/0/0/0/0/0/0/0 Lore% 39 Gallery% 40 Achievement% 33 Wizard Run 0 Options --------- ASCII 0 Keyboard 0 Movement Numpad Keybinds 0 Fullscreen 2 Font 24/Smallcaps Map View 76x50 Tactical HUD 1 Map Filters NONE Filters NONE Steam 1 RUN: d7522fa8-58e9-4ad5-87f9-3b8acc360c75